Cogmind - Beta 13 @@@ ROGUE MODE // 2024.03.24 @ 22:04:24 Player: f_ Result: Destroyed by D-53 Grenadier with Mini Grenade Launcher Performance ------------- Evolutions (0) 0 Regions Visited (2) 400 Robots Destroyed (30) 150 Value Destroyed (577) 577 Prototype IDs (2) 40 Alien Tech Used (0) 0 Bonus (32) 32 TOTAL SCORE: 1199 Bonus ------- High Alert Combat Kills 32 Cogmind --------- Core Integrity 0/250 Matter 300/300 Energy 100/100 System Corruption 2% Temperature Cool (0) Movement Core (1450) Ox28 Location -10/Mines Parts ------- > --- POWER (1) -------- (None) > --- PROPULSION (2) --- (None) > --- UTILITY (2) ------ Huge Storage Unit Signal Interpreter > --- WEAPON (2) ------- Maul Maul > --- INVENTORY (25) --- Ion Engine Ion Engine Wheel Wheel Wheel Heat Sink Experimental Sensor Array Transport Network Coupler Light Armor Plating Light Armor Plating Light Armor Plating Recalibrator Heavy EM Pulse Gun Heavy EM Pulse Gun Heavy EM Pulse Gun Heavy EM Pulse Gun Maul Maul Peak State ------------ > --- POWER ------------ Light Ion Engine > --- PROPULSION ------- Wheel Compact Wheel > --- UTILITY ---------- Huge Storage Unit Signal Interpreter > --- WEAPON ----------- Maul Maul > --- INVENTORY -------- Ion Engine Ion Engine Wheel Wheel Wheel Heat Sink Experimental Sensor Array Transport Network Coupler Light Armor Plating Light Armor Plating Light Armor Plating Recalibrator Heavy EM Pulse Gun Heavy EM Pulse Gun Heavy EM Pulse Gun Heavy EM Pulse Gun Maul Maul [Rating: 12] Favorites ----------- Power Light Ion Engine Engine Light Ion Engine Propulsion Wheel Wheel Wheel Utility Huge Storage Unit Storage Huge Storage Unit Processor Signal Interpreter Protection Light Armor Plating Weapon Maul Energy Gun EM Pulse Gun Ballistic Gun Assault Rifle Launcher Grenade Launcher Impact Weapon Maul Build | -11 -10 -10 ------- Run | Yrd Mat Min Slots Evolved . | . . . Power . | . . . Propulsion . | . . . Utility . | . . . Weapon . | . . . Parts Attached 25 | 6 18 1 Power 2 | . 2 . Engine 2 | . 2 . Core . | . . . Reactor . | . . . Propulsion 4 | 2 2 . Treads . | . . . Leg . | . . . Wheel 4 | 2 2 . Hover . | . . . Flight . | . . . Utility 7 | 1 5 1 Device . | . . . Storage 4 | 1 3 . Processor 1 | . . 1 Hackware . | . . . Protection 2 | . 2 . Artifact . | . . . Weapon 12 | 3 9 . Energy Gun 5 | 2 3 . Energy Cannon . | . . . Ballistic Gun 3 | 1 2 . Ballistic Cannon . | . . . Launcher 2 | . 2 . Special Weapon . | . . . Impact Weapon 2 | . 2 . Slashing Weapon . | . . . Piercing Weapon . | . . . Special Melee Weapon . | . . . Unidentified Prototypes . | . . . Corrupted Parts 1 | . . 1 System Corruption 2 | . . 2 Parts Lost 7 | . 4 3 Power 2 | . 1 1 Propulsion 3 | . 1 2 Utility . | . . . Weapon 2 | . 2 . Highest Loss Streak 3 | . 3 3 To Critical Strikes . | . . . Average Slot Usage (%) 90 | . 85 99 Engine 7 | . 4 14 Wheel 27 | . 28 27 Storage 14 | . 14 14 Processor 3 | . . 9 Protection 8 | . 10 4 Energy Gun 8 | . 13 . Ballistic Gun 4 | . 7 . Launcher 1 | . 2 . Impact Weapon 12 | . 4 28 Naked Turns . | . . . Heaviest Build 92 | 9 92 92 Greatest Support 26 | 26 26 26 Greatest Overweight (x) 28 | . 3 28 Average Overweight (x) 2 | . 2 3 Largest Inventory Capacity 25 | 8 25 25 Average Capacity 23 | 6 23 25 Most Carried 21 | 5 21 18 Average Carried 14 | 1 13 17 Final Capacity 25 | 8 25 25 Final Carried 18 | 1 17 18 Class Distribution -------------------- 100% | Mutant Dominant Class ---------------- Mutant | -10/Materials Mutant | -10/Mines Resources | -11 -10 -10 ----------- Run | Yrd Mat Min Matter Collected 685 | 119 537 29 Remotely . | . . . Salvage Created 762 | . 685 77 Parts 47 | . 47 . Haulers Intercepted 2 | . 2 . Recyclers Shooed 2 | . 2 . Parts Field Recycled . | . . . Retrieved Matter . | . . . Parts Self-Destructed . | . . . Prevented . | . . . Kills | -11 -10 -10 ------- Run | Yrd Mat Min Combat Hostiles Destroyed 22 | . 17 5 Melee 7 | . 2 5 Guns 2 | . 2 . AOE 12 | . 12 . Classes Destroyed 10 | . 9 1 Worker 3 | . 2 1 Builder 2 | . 1 1 Hauler 2 | . 2 . Recycler 1 | . 1 . Mechanic 1 | . 1 . Operator 1 | . 1 . Watcher 3 | . 3 . Swarmer 6 | . 6 . Grunt 11 | . 11 . Assembled 5 | . . 5 Best Kill Streak 6 | . 6 5 Combat Bots Only 5 | . 5 5 Max Kills in Single Turn 2 | . 2 1 Gunslinging . | . . . Exploded 2 | . 2 . Melee 1 | . 1 1 Uniques/NPCs Destroyed . | . . . Combat | -11 -10 -10 -------- Run | Yrd Mat Min Hostile Shots Fired 71 | . 47 24 Missed 16 | . 10 6 Damage Taken 872 | . 552 320 Core 252 | . 119 133 Absorbed by Shields . | . . . Core Remaining (%) 100 | 100 . . Volleys Fired 49 | . 49 . Largest 2 | . 2 . Hottest 80 | . 80 . Shots Fired 77 | . 77 . Gun 60 | . 60 . Cannon . | . . . Launcher 17 | . 17 . Special . | . . . Kinetic 22 | . 22 . Thermal . | . . . Explosive 17 | . 17 . Electromagnetic 38 | . 38 . Robot Hit Streak 11 | . 11 . Robot Miss Streak 3 | . 3 . Penetration Max . | . . . Secondary Targets . | . . . Shots Hit Robots 57 | . 48 9 Core Hits 39 | . 37 2 Critical Kills 2 | . 1 1 Critical Parts Destroyed 5 | . 1 4 Critical Strikes 8 | . 3 5 Corrupt 1 | . 1 . Smash 7 | . 2 5 Melee Attacks 20 | . 6 14 Impact 20 | . 6 14 Slashing . | . . . Piercing . | . . . Sneak Attacks 2 | . . 2 Combat Hostiles . | . . . Follow-up Attacks 1 | . . 1 Damage Inflicted 2299 | . 1754 545 Guns 527 | . 527 . Cannons . | . . . Explosions 1031 | . 1031 . Melee 741 | . 196 545 Ramming . | . . . Kinetic 144 | . 144 . Thermal 186 | . 186 . Explosive 845 | . 845 . Electromagnetic 383 | . 383 . Impact 741 | . 196 545 Slashing . | . . . Piercing . | . . . Highest Corruption 2 | . . 2 Average Corruption 2 | . . 2 Corruption Purged . | . . . Corruption Blocked . | . . . Effects 6 | . . 6 Matter Fused 2 | . . 2 Energy Discharges 1 | . . 1 Data Loss (major) 2 | . . 2 Alerts 1 | . . 1 Overload Shots . | . . . Overflow Damage 390 | . 85 305 Projectiles . | . . . Explosions 42 | . 42 . Melee 348 | . 43 305 Knockbacks 3 | . 2 1 Impact 3 | . 2 1 Kinetic . | . . . Secondary . | . . . Self-Inflicted Damage 123 | . 123 . Shots 6 | . 6 . Rammed . | . . . Targets Rammed . | . . . Kicked . | . . . Crushed . | . . . Highest Temperature 53 | . 53 . Average Temperature 19 | . 19 . Received Heat Transfer 180 | . 180 . Siege Activations . | . . . Robots Corrupted . | . . . Combat Hostiles . | . . . Parts Fried 4 | . 1 3 Impact Corruptions 11 | . 2 9 Robots Melted . | . . . Combat Hostiles . | . . . Parts Melted . | . . . Heat Transferred 300 | . 300 . Parts Sabotaged . | . . . Parts Stolen . | . . . Parts Stripped . | . . . Power Chain Reactions 4 | . 4 . Alert | -11 -10 -10 ------- Run | Yrd Mat Min Peak Influence 544 | . 544 131 Initial 121 | . . 121 Average 230 | . 313 90 Maximum Alert Level 2 | . 2 . Low Security (%) 44 | 100 12 100 Level 1 44 | . 70 . Level 2 10 | . 16 . Level 3 . | . . . Level 4 . | . . . Level 5 . | . . . High Security . | . . . Max Security . | . . . Squads Dispatched 3 | . 3 . Investigation 3 | . 3 . Extermination . | . . . Reinforcement . | . . . Assault . | . . . Garrison . | . . . Intercept . | . . . Searches Triggered . | . . . Construction Impeded . | . . . Haulers Reinforced . | . . . Active Scanning Responses . | . . . Cargo Convoy Interrupts . | . . . Stealth | -11 -10 -10 --------- Run | Yrd Mat Min Distress Signals . | . . . Communications Jammed . | . . . Distress Signals . | . . . Times Spotted 41 | . 23 18 Peak Tracking Total 13 | . 5 13 Tactical Retreats 2 | . 2 . Traps | -11 -10 -10 ------- Run | Yrd Mat Min Traps Triggered 3 | . 3 . Indirectly . | . . . Trap Hack Attempts . | . . . Triggered . | . . . Disarmed . | . . . Reprogrammed . | . . . Reused . | . . . Traps Extracted . | . . . Installed . | . . . Triggered . | . . . Machines | -11 -10 -10 ---------- Run | Yrd Mat Min Machines Disabled 3 | . 3 . Max in Single Turn 1 | . 1 . Machines Repaired . | . . . Machines Dismantled . | . . . Machines Sabotaged . | . . . Overloaded Fab Kills . | . . . Hacking | -11 -10 -10 --------- Run | Yrd Mat Min Machines Accessed 7 | . 7 . Terminals 6 | . 6 . Fabricators . | . . . Repair Stations 1 | . 1 . Recycling Units . | . . . Scanalyzers . | . . . Garrison Access . | . . . Total Hacks 20 | . 20 . Successful 7 | . 7 . Failed 13 | . 13 . Catastrophic 1 | . 1 . Database Lockouts . | . . . Manual . | . . . Terminals 17 | . 17 . Fabricators . | . . . Repair Stations 3 | . 3 . Recycling Units . | . . . Scanalyzers . | . . . Garrison Access . | . . . Terminal Hacks 7 | . 7 . Robot Analysis 2 | . 2 . Prototype ID Bank 1 | . 1 . Emergency Access Points 1 | . 1 . Alert Level 1 | . 1 . Locate Traps 1 | . 1 . Hauler Manifests 1 | . 1 . Fabricator Hacks . | . . . Repair Station Hacks . | . . . Recycling Unit Hacks . | . . . Scanalyzer . | . . . Garrison Access Hacks . | . . . Unauthorized Hacks . | . . . Terminals . | . . . Fabricators . | . . . Repair Stations . | . . . Recycling Units . | . . . Scanalyzers . | . . . Garrison Access . | . . . Data Cores Recovered 1 | . 1 . Used . | . . . Hacking Detections 6 | . 6 . Full Trace Events 4 | . 4 . Feedback Events . | . . . Feedback Blocked . | . . . Robot Schematics Acquired . | . . . Robots Built . | . . . Authchips . | . . . Time . | . . . Total Robot Build Rating . | . . . Part Schematics Acquired . | . . . Parts Built . | . . . Authchips . | . . . Time . | . . . Total Part Build Rating . | . . . Parts Repaired . | . . . Time . | . . . Parts Recycled . | . . . Recycled Matter . | . . . Retrieved Matter . | . . . Retrieved Components . | . . . Parts Scanalyzed . | . . . Part Schematics Acquired . | . . . Parts Damaged . | . . . Bothacking | -11 -10 -10 ------------ Run | Yrd Mat Min Used RIF Installer . | . . . Robots Hacked . | . . . Non-combat . | . . . Combat . | . . . Robot Hacks Applied . | . . . Relay Couplers Released . | . . . Fabnet Peak Effective % . | . . . Robots Rewired . | . . . Allies Hacked . | . . . Hacks Repelled . | . . . Allies | -11 -10 -10 -------- Run | Yrd Mat Min Total Allies . | . . . Largest Group . | . . . Highest-Rated Group . | . . . Highest-Rated Ally . | . . . Total Orders . | . . . Ally Attacks . | . . . Total Damage . | . . . Kills . | . . . Allies Corrupted . | . . . Allies Melted . | . . . Intel | -11 -10 -10 ------- Run | Yrd Mat Min Robot Analysis Total 2 | . 2 . Derelict Logs Recovered . | . . . Drone Launches . | . . . Drone Recoveries . | . . . Exploration | -11 -10 -10 ------------- Run | Yrd Mat Min Turns Passed 1618 | 35 1025 558 Spaces Moved 948 | 30 636 282 Core 12 | 11 . 1 Treads . | . . . Legs . | . . . Wheels 936 | 19 636 281 Hover . | . . . Flight . | . . . Fastest Speed 50 | 50 90 135 Average Speed 128 | 75 126 139 Slowest Speed 1450 | 90 135 1450 Overloaded Moves . | . . . Propulsion Burnouts . | . . . Robots Hopped . | . . . Cave-ins Triggered . | . . . Exploration Rate (%) 55 | 4 90 71 Regions Visited 2 Branch Regions 1 Pre-discovered Areas . | . . . Known Exits Taken . | . . . Unknown Exits Taken 2 | 1 1 . Scrap Searched 3 | . . 3 Spaces Dug 3 | . 3 . Terrain Destroyed 75 | . 75 . Melee . | . . . Projectile . | . . . AOE 75 | . 75 . Terrain Rammed . | . . . Walls Destroyed . | . . . Machines Disabled . | . . . Actions | -11 -10 -10 --------- Run | Yrd Mat Min Total 1244 | 41 768 435 Wait 167 | . 29 138 Move 946 | 29 635 282 Hop . | . . . Pick Up 35 | 6 28 1 Fast Attach . | . . . Attach 17 | 5 11 1 Detach 1 | . . 1 Swap 8 | 1 7 . Drop 4 | . 4 . Fire 49 | . 49 . Melee 17 | . 5 12 Ram . | . . . Kick . | . . . Crush . | . . . Escape Stasis . | . . . Rewire . | . . . Trap . | . . . Miscellaneous . | . . . Route ------- -11/Scrapyard -10/Materials (discovered 5 exits: *Mat x3 / [*Min x2]) -10/Mines (discovered 2 exits: *Mat x2) History --------- Turn | Location | Event 19 | -11/Scrapyard | Discovered new exit (range 15) 36 | -11/Scrapyard | Entered Materials 93 | -10/Materials | Discovered new exit (range 16) 148 | -10/Materials | Discovered new exit (range 11) 270 | -10/Materials | Discovered new exit (range 12) 339 | -10/Materials | Build established: Mutant 353 | -10/Materials | Lost 3 parts (1p2w) 482 | -10/Materials | Discovered new exit (range 15) 711 | -10/Materials | Discovered new exit (range 16) 1061 | -10/Materials | Entered Mines 1174 | -10/Mines | Discovered new exit (range 8) 1229 | -10/Mines | Discovered new exit (range 10) 1264 | -10/Mines | Identified exit to Materials 1318 | -10/Mines | Found a damaged Exp. Sensor Array with a note attached 1320 | -10/Mines | Found Prototype Device 1525 | -10/Mines | Found a hidden stash of uninstalled traps 1570 | -10/Mines | Assembled infested the area 1588 | -10/Mines | Core integrity fell below 50% 1618 | -10/Mines | Core integrity fell below 20% 1619 | -10/Mines | Destroyed by D-53 Grenadier with Mini Grenade Launcher Last Messages --------------- 01600_ Destroyed Asb. Heavy Rifle. 01600_ as-69223 system corrupted by crushing effect. 01600_ as-69223 destroyed. 01606_ as-47187 suffers critical hit (Smash). 01606_ Destroyed Asb. Rifle. 01606_ as-47187 system corrupted by crushing effect. 01606_ as-47187 destroyed. 01609_ as-08373 suffers critical hit (Smash). 01609_ Destroyed Asb. Hover Unit. 01609_ as-08373 system corrupted by crushing effect. 01609_ as-08373 destroyed. 01611_ Lgt. Ion Engine destroyed. 01612_ Maul follow-up attack on as-22865. 01614_ as-22865 destroyed. 01617_ as-43532 destroyed. 01617_ as-00974 destroyed. 01618_ Wheel destroyed. Map ----- +----------------------------------------------------+ | ??# ## ### #### #??????????????????# ##? | | ??## ##### ##?# #??????????????????# #?? | | ???# #???# #??## ######??????????????????# ### | | ???# #???# #??## ##???????????????????????# | | ???# ##### #### #????????????????????????#### | | ???# #????????????? ?????????????# | | ???# ##????????????? ?????????????# | | ???########## #?????????? """ ?????????????# | | ????????????## #???????????""" ?????????????# | | ?????????????# ##??????????? ?????????????## | | ?????????????## ##???????????? ??????????????? | | ??????????????####?????????????# #??????????????? | | ???????????????????????????????# #??????????####? | | ???????????????????????????????# #???#####?## #? | | ???????????????????????????????# ##### #?# ## | | ???????????????????????????????# ### # | | ???????????????????????????????# #??# | | ???????????????????????????????# #### | | ??????????????################## | | ??????????????# !%!! ## | | ??????????????# ########d############ #### | | ???????????????????????# #???????####&&##??# | | ?????????????????????### ##??????# & ##???# # | | ?????????????????????# ##????# &##????## # | | ?????????????????????# #????# #???????### # | | ????????????????????## aa@ ##??# ??#####???# # | | ????????????## ##### % #?# #?## ##??# # | | ????????????# a a aa #?# ??# #### | | ????????????# #### #?## #??# + | | ????????????# ??????# #??###??## ## | | ????????????????????#########????#### #### # # | | ????????????????????????????????## ##??# # # | | ????????????????????????????????# #???# ^ ^# | | ????????????????????????????????# #???# ^## | | ????????????????????????????????# #???# | | ????????????????????????????????## #???# ##### | | ?????????????????????????????????### ##???# #???? | | ???????????????????????????????????####????# #???? | | ???????????????????????????????????????????# #???? | | ???????????????????????????????????????????# #???? | | ???????????????????????????????????????????#|##### | | ???????????????????????????????????????????#%[ | | ???????????????????????????????????????????####### | | ?????????????????????????????????????????????????? | | ?????????????????????????????????????????????????? | | | | | | | | | | | +----------------------------------------------------+ Best States ------------- Heat Dissipation 25 Energy Generation 10 Energy Capacity 250 Matter Stores 300 Matter Capacity 300 Sight Range 16 Terrain Scan Density 10 Armor Coverage 150 Evasion (%) 50 Item Schematics ----------------- None Robot Schematics ------------------ None Fabricated ------------ Nothing Alien Tech Used ----------------- None Achievements -------------- None Challenges ------------ None Game ------ Seed HeavySpliceCharge Manual? 0 Play Time 00:17:05 Cumulative 61.3 hours Start 2024.03.24 @ 21:49:33 End 2024.03.24 @ 22:04:24 Sessions 1 Manual Loads 0 Difficulty Rogue Special Mode None Game No. 53 Rogue 51 Adventurer 0 Explorer 2 Win Type - Total 0 Types 0/0/0/0/0/0/0/0/0 Lore% 20 Gallery% 33 Achievement% 21 Wizard Run 0 Options --------- Layout 1 ASCII 0 Keyboard 0 Movement Mouse Keybinds 0 Fullscreen 2 Font 48/Tamsyn Map View 50x35 Zoom Use 0% Tactical HUD 1 Map Filters NONE Filters NONE Steam 1 RUN: a1e9e8da-d8f6-4bfe-96e0-964edb114d79